bitfinex/quotes_ETHUSD_20230117
["timestamp","ask_amount","ask_price","bid_price","bid_amount"]
[1673978623182,22.85275785,1577.3,1576.9,3.12223237]
[1673978630366,34.41225785,1577.3,1576.9,3.12223237]
[1673978630993,35.8339126,1577.3,1576.9,3.12223237]
[1673978634455,6.34075,1577.1,1576.9,3.12223237]
[1673978634674,6.39895641,1577.1,1576.9,3.12223237]
[1673978636351,8.35452605,1577.1,1576.9,3.12223237]
[1673978637140,6.39895641,1577.1,1576.9,3.12223237]
[1673978638894,0.05820641,1577.1,1576.9,15.80532237]
[1673978639065,34.31910562,1577.3,1577.0,3.11662407]
[1673978639066,19.38148307,1577.3,1577.0,3.11662407]
[1673978639286,1.48196307,1577.3,1577.1,3.11662407]
[1673978639496,1.42375666,1577.4,1577.2,9.76862648]
[1673978639715,1.42375666,1577.4,1577.2,9.83462648]
[1673978640408,3.3239396,1577.5,1577.3,3.11662407]
[1673978640619,3.27029849,1577.5,1577.3,9.45650407]
[1673978640832,2.37437671,1577.5,1577.3,9.52250407]
[1673978641038,3.94716248,1577.5,1577.3,9.52250407]
[1673978641290,2.37437671,1577.5,1577.3,9.52250407]
[1673978641508,3.94716774,1577.5,1577.3,9.52250407]
[1673978641885,6.26474427,1577.5,1577.3,9.52250407]
[1673978642095,4.75015965,1577.5,1577.3,9.52250407]
[1673978642340,4.69195324,1577.5,1577.3,9.52250407]
[1673978644187,4.69195324,1577.5,1577.3,11.77398872]
[1673978644398,0.95272196,1577.5,1577.3,11.77398872]
[1673978644747,0.95272196,1577.5,1577.3,13.05398872]
[1673978644748,3.94713662,1577.5,1577.3,13.05398872]
[1673978644923,0.95272196,1577.5,1577.3,13.05398872]
[1673978645133,0.00194023,1577.5,1577.4,4.65202294]
[1673978645399,0.00194023,1577.5,1577.4,26.23264294]
[1673978645572,0.00194023,1577.5,1577.4,26.93538467]
[1673978645783,0.00194023,1577.5,1577.4,30.43538467]
[1673978645990,0.00194023,1577.5,1577.4,33.43538467]
[1673978646207,0.00194023,1577.5,1577.4,33.76790573]
[1673978646669,0.00194023,1577.5,1577.4,34.70915879]
[1673978647299,0.00194023,1577.5,1577.4,33.76790573]
[1673978648185,0.94815666,1578.0,1577.5,1.00005977]
[1673978648448,2.5204653,1578.0,1577.9,1.284]
[1673978648609,2.5204653,1578.0,1577.9,17.07568407]
[1673978648814,2.5204653,1578.0,1577.9,17.14168407]
[1673978649068,2.5204653,1578.0,1577.9,10.80415407]
[1673978649236,2.5204653,1578.0,1577.9,3.18262407]
[1673978649454,2.5204653,1578.0,1577.9,3.11662407]
[1673978651608,2.5204653,1578.0,1577.8,0.066]
[1673978651609,2.54435672,1578.0,1577.8,0.066]
[1673978651754,15.98304096,1578.0,1577.8,3.11662407]
[1673978651968,19.78047865,1578.0,1577.8,3.11662407]
[1673978652507,2.52065958,1577.9,1577.8,3.11662407]
[1673978652719,8.85818958,1577.9,1577.7,0.066]
[1673978652970,7.34389307,1577.9,1577.7,3.11662407]
[1673978655382,0.05820641,1577.9,1577.7,3.11662407]
[1673978655595,11.10661577,1578.0,1577.7,3.11662407]
[1673978655784,11.10661577,1578.0,1577.7,9.45492407]
[1673978655994,11.10661577,1578.0,1577.7,9.52092407]
[1673978656209,11.10661577,1578.0,1577.8,3.11662407]
[1673978656382,3.04287646,1578.0,1577.8,3.11662407]
[1673978656593,0.97204808,1578.0,1577.8,9.45453407]
[1673978656820,0.97204808,1578.0,1577.8,9.52053407]
[1673978657703,0.97204808,1578.0,1577.8,15.85846407]
[1673978658011,15.54973595,1578.1,1577.8,24.63805082]
[1673978658167,13.53711398,1578.1,1577.8,24.63805082]
[1673978658377,15.54973595,1578.1,1577.8,24.63805082]
[1673978658854,21.88648595,1578.1,1577.8,9.52053407]
[1673978659072,10.9176407,1578.1,1577.8,9.52053407]
[1673978659220,6.53520732,1578.1,1577.9,3.0]
[1673978659430,0.19845732,1578.1,1577.9,3.0]
[1673978659640,0.14025091,1578.1,1577.8,22.19639407]
[1673978659962,0.14025091,1578.1,1577.8,24.71603348]
[1673978660175,0.14025091,1578.1,1577.9,3.11662407]
[1673978660440,0.14025091,1578.1,1577.9,9.45408407]
[1673978660737,0.14025091,1578.1,1577.9,9.52008407]
[1673978662614,0.14025091,1578.1,1578.0,3.11662407]
[1673978662826,0.14025091,1578.1,1578.0,24.57752848]
[1673978663017,0.14025091,1578.1,1578.0,24.64352848]
[1673978663853,0.14025091,1578.1,1578.0,5.63213848]
[1673978664115,0.14025091,1578.1,1578.0,9.74975407]
[1673978664281,0.14025091,1578.1,1578.0,3.41262407]
[1673978664492,0.14025091,1578.1,1578.0,3.34662407]
[1673978665043,0.14025091,1578.1,1578.0,9.68375407]
[1673978665256,0.14025091,1578.1,1578.0,16.08688407]
[1673978665596,0.14025091,1578.1,1578.0,19.09132248]
[1673978665963,0.14025091,1578.1,1578.0,25.42845248]
[1673978670271,0.14025091,1578.1,1578.0,25.42479895]
[1673978675232,0.14025091,1578.1,1578.0,28.42479895]
[1673978675450,0.14025091,1578.1,1578.0,33.84554068]
[1673978676429,0.14025091,1578.1,1578.0,30.34554068]
[1673978676602,0.14025091,1578.1,1578.0,29.70879895]
[1673978677003,0.14025091,1578.1,1578.0,30.34554068]
[1673978677668,0.14025091,1578.1,1578.0,30.79658825]
[1673978678815,0.14025091,1578.1,1578.0,35.58058825]
[1673978679532,0.14025091,1578.1,1578.0,32.08058825]
[1673978681476,0.14025091,1578.1,1578.0,29.51258825]
[1673978681788,0.14025091,1578.1,1578.0,32.38558825]
[1673978682329,0.14025091,1578.1,1578.0,35.88558825]
[1673978684842,0.14025091,1578.1,1578.0,37.32158825]
[1673978690799,0.13662962,1578.1,1578.0,37.32158825]
[1673978691327,0.13662962,1578.1,1578.0,37.82960332]
[1673978691514,0.13662962,1578.1,1578.0,44.52760332]
[1673978694054,9.62e-06,1578.1,1578.0,44.52760332]
[1673978694410,0.14355621,1578.2,1578.0,44.52760332]
[1673978694567,0.14355621,1578.2,1578.1,11.64494036]
[1673978694776,0.14355621,1578.2,1578.1,34.22113036]
[1673978695026,0.14355621,1578.2,1578.1,34.85787209]
[1673978695565,0.14355621,1578.2,1578.1,35.25598075]
[1673978696713,0.14355621,1578.2,1578.1,31.75598075]
[1673978697516,0.35358006,1578.2,1578.1,31.75598075]
[1673978698818,0.35358006,1578.2,1578.1,30.31398075]
[1673978700291,0.14044309,1578.3,1578.2,0.35291994]
[1673978700450,0.14044309,1578.3,1578.2,32.07169115]
[1673978700659,9.08620641,1578.7,1578.3,1.0]
[1673978700915,9.08620641,1578.7,1578.6,3.11662407]
[1673978701074,0.05820641,1578.7,1578.6,25.12078407]
[1673978701290,12.83100346,1578.8,1578.6,25.41678407]
[1673978701607,12.83100346,1578.8,1578.7,3.34662407]
[1673978701821,14.40255551,1578.8,1578.7,22.34958407]
[1673978702027,14.40255551,1578.8,1578.7,22.41558407]
[1673978702548,3.19925551,1578.8,1578.7,16.08126407]
[1673978702758,3.13990987,1578.8,1578.7,16.08126407]
[1673978703227,4.56156462,1578.8,1578.7,16.08126407]
[1673978703417,4.56156462,1578.8,1578.7,9.74694407]
[1673978704465,18.71405337,1578.8,1578.7,0.066]
[1673978704683,20.34381183,1578.8,1578.4,6.39935]
[1673978704900,5.38208883,1578.7,1578.5,3.11662407]
[1673978705136,2.51843408,1578.6,1578.5,3.11662407]
[1673978705440,2.99363408,1578.6,1578.5,3.11662407]
[1673978705650,2.99363408,1578.6,1578.4,6.39935]
[1673978705866,1.42208203,1578.6,1578.4,9.51597407]
[1673978707083,1.42208203,1578.6,1578.5,3.11662407]
[1673978707294,1.42208203,1578.6,1578.5,9.68174407]
[1673978707295,2.99384982,1578.6,1578.5,9.68174407]
[1673978707515,2.99384982,1578.6,1578.5,9.74584407]
[1673978707516,2.51864982,1578.6,1578.5,9.74584407]
[1673978709502,3.94030457,1578.6,1578.5,9.74584407]
[1673978711182,2.99342254,1578.6,1578.5,3.41072407]
[1673978711444,19.96164031,1578.6,1578.4,0.0641]
[1673978711604,2.51951984,1578.5,1578.2,9.56128212]
[1673978711813,11.71834459,1578.5,1578.3,3.34662407]
[1673978712038,0.94775205,1578.4,1578.3,3.34662407]
[1673978712283,3.8114068,1578.5,1578.3,3.34662407]
[1673978712609,3.8114068,1578.5,1578.4,3.11662407]
[1673978712767,3.94125334,1578.5,1578.4,9.45214407]
[1673978712969,3.94125334,1578.5,1578.4,9.51624407]
[1673978713199,2.99350129,1578.5,1578.4,9.74624407]
[1673978713849,2.99550129,1578.5,1578.4,9.74424407]
[1673978714024,2.99350129,1578.5,1578.4,9.74624407]
[1673978714689,2.51998776,1578.5,1578.4,16.08176407]
[1673978715303,3.94164251,1578.5,1578.4,16.08176407]
[1673978715527,2.99350129,1578.5,1578.4,16.08176407]
[1673978716489,2.99350129,1578.5,1578.4,9.74624407]
[1673978717383,1.42165475,1578.5,1578.4,9.74624407]
[1673978717632,2.99350129,1578.5,1578.4,9.74624407]
[1673978718869,2.52061214,1578.5,1578.4,16.08176407]
[1673978719094,3.94226689,1578.5,1578.4,16.08176407]
[1673978719304,2.99350129,1578.5,1578.4,16.08176407]
[1673978721226,1.42165475,1578.5,1578.4,16.08176407]
[1673978721377,2.99350129,1578.5,1578.4,16.08176407]
[1673978724422,2.42909045,1578.6,1578.4,28.15903248]
[1673978724674,0.94922929,1578.6,1578.5,7.34662407]
[1673978725003,24.03199045,1578.7,1578.5,26.41608407]
[1673978725218,24.03199045,1578.7,1578.6,3.11662407]
[1673978725429,16.25244003,1578.7,1578.6,23.62536848]
[1673978725579,4.00064003,1578.7,1578.6,26.68946848]
[1673978725790,0.94922929,1578.7,1578.6,26.68946848]
[1673978726051,2.51702443,1578.8,1578.6,26.68946848]
[1673978726266,1.56779514,1578.8,1578.7,25.34958407]
[1673978726428,2.51666704,1578.8,1578.7,28.14870582]
[1673978726636,4.08812524,1578.8,1578.7,28.14870582]
[1673978726897,2.66647049,1578.8,1578.7,28.14870582]
[1673978727122,2.66647049,1578.8,1578.7,33.87015552]
[1673978727123,0.14368232,1578.8,1578.7,33.87015552]
[1673978727421,0.14368232,1578.8,1578.7,29.59070582]
[1673978728628,0.14368232,1578.8,1578.7,21.81438582]
[1673978728899,1.09255422,1578.8,1578.7,19.07936407]
[1673978729260,2.51691423,1578.8,1578.7,16.07936407]
[1673978730472,2.51691423,1578.8,1578.7,19.07936407]
[1673978730852,3.93856898,1578.8,1578.7,19.07936407]
[1673978731194,3.93856898,1578.8,1578.7,12.74504407]
[1673978732766,3.93856898,1578.8,1578.7,19.07936407]
[1673978733015,2.51691423,1578.8,1578.7,21.62077248]
[1673978734085,2.51691423,1578.8,1578.7,19.07936407]
[1673978734260,2.51691423,1578.8,1578.7,6.41072407]
[1673978734608,3.93856898,1578.8,1578.7,6.41072407]
[1673978735182,2.51691423,1578.8,1578.7,6.41072407]
[1673978735681,3.93856898,1578.8,1578.7,6.41072407]
[1673978736229,3.93856898,1578.8,1578.7,19.07936407]
[1673978736718,3.93856898,1578.8,1578.7,21.62073748]
[1673978736932,3.93856898,1578.8,1578.7,27.95505748]
[1673978737300,3.93856898,1578.8,1578.7,6.41072407]
[1673978737544,2.98969708,1578.8,1578.7,3.41072407]
[1673978737750,3.46489708,1578.8,1578.7,3.34662407]
[1673978737971,4.88523593,1578.8,1578.7,3.34662407]
[1673978739141,3.46358118,1578.8,1578.7,3.34662407]
[1673978742338,12.04126983,1578.8,1578.7,3.34662407]
[1673978742548,12.09947624,1578.8,1578.7,3.34662407]
[1673978743325,26.20931624,1578.8,1578.6,0.0641]
[1673978743497,1.442,1578.6,1578.3,3.0641]
[1673978743706,1.442,1578.6,1578.4,3.11662407]
[1673978743707,1.442,1578.5,1578.4,3.11662407]
[1673978743957,11.57033509,1578.6,1578.4,9.45189407]
[1673978743958,5.67757777,1578.6,1578.4,9.45189407]
[1673978744183,3.87025208,1578.6,1578.4,9.51599407]
[1673978744497,3.81204567,1578.6,1578.4,9.51599407]
[1673978744860,3.81204567,1578.6,1578.5,3.11662407]
[1673978745108,5.23545747,1578.6,1578.5,3.11662407]
[1673978745335,5.29366388,1578.6,1578.5,9.45174407]
[1673978745565,5.29366388,1578.6,1578.5,9.74584407]
[1673978746575,3.85166388,1578.6,1578.5,16.08096407]
[1673978746799,3.79345747,1578.6,1578.5,16.08096407]
[1673978747134,2.37143007,1578.6,1578.5,16.08096407]
[1673978747295,2.37143007,1578.6,1578.5,19.20798302]
[1673978748406,2.37143007,1578.6,1578.5,19.20438445]
[1673978749883,15.92795208,1578.7,1578.5,19.20438445]
[1673978750038,15.92795208,1578.7,1578.6,9.68134407]
[1673978750251,5.76374835,1578.7,1578.6,9.74544407]
[1673978750463,4.81573008,1578.7,1578.6,3.41072407]
[1673978750675,4.28232367,1578.7,1578.6,3.34662407]
[1673978751106,5.23035839,1578.7,1578.6,3.34662407]
[1673978751318,4.34053008,1578.7,1578.6,3.34662407]
[1673978751587,14.93610263,1578.7,1578.6,3.34662407]
[1673978751798,30.42068666,1578.7,1578.5,0.0641]
[1673978752015,9.18020804,1578.6,1578.3,9.33588]
[1673978752240,2.37142614,1578.5,1578.4,3.34662407]
[1673978757282,10.14754614,1578.5,1578.4,0.23]
[1673978757507,14.24730666,1578.5,1578.2,6.56128212]
[1673978757813,10.20464805,1578.5,1578.3,3.34662407]
[1673978758173,12.01197374,1578.5,1578.3,3.34662407]
[1673978758630,5.67685374,1578.5,1578.3,3.34662407]
[1673978759035,3.86952805,1578.5,1578.3,3.34662407]
[1673978759380,3.81132164,1578.5,1578.3,3.34662407]
[1673978760738,2.38912987,1578.5,1578.3,3.34662407]
[1673978761163,3.81132164,1578.5,1578.3,3.34662407]
[1673978764189,0.94812987,1578.4,1578.3,3.34662407]
[1673978764730,5.67685374,1578.5,1578.3,3.34662407]
[1673978764939,5.67685374,1578.5,1578.3,9.68255407]
[1673978765107,3.86952805,1578.5,1578.3,9.74665407]
[1673978765475,3.81132164,1578.5,1578.3,9.74665407]
[1673978766756,2.38912987,1578.5,1578.3,9.74665407]
[1673978766918,3.81132164,1578.5,1578.4,3.11662407]
[1673978767270,3.81132164,1578.5,1578.4,3.34662407]
[1673978767271,3.81248849,1578.5,1578.4,3.34662407]
[1673978767495,5.66402973,1578.5,1578.4,0.23]
[1673978767797,3.8706949,1578.5,1578.4,3.11662407]
[1673978768013,3.81248849,1578.5,1578.4,3.11662407]
[1673978768206,5.23468026,1578.5,1578.4,3.11662407]
[1673978768371,5.29288667,1578.5,1578.4,3.11662407]
[1673978769014,4.3447568,1578.5,1578.4,3.11662407]
[1673978769227,10.62167039,1578.5,1578.4,3.34662407]
[1673978769455,10.6798768,1578.5,1578.4,3.34662407]
[1673978769634,15.87497628,1578.5,1578.3,0.0641]
[1673978769847,2.37170566,1578.4,1578.2,3.16110212]
[1673978770061,2.37170566,1578.4,1578.2,6.27772619]
[1673978770062,8.70738566,1578.4,1578.2,6.27772619]
[1673978770273,7.34223345,1578.4,1578.2,6.34182619]
[1673978770586,7.34223345,1578.4,1578.3,3.11662407]
[1673978770587,0.05820641,1578.4,1578.3,3.11662407]
[1673978770797,2.37053881,1578.5,1578.3,15.78848407]
[1673978771047,3.79432691,1578.5,1578.4,3.11662407]
[1673978771252,3.79432691,1578.5,1578.4,3.34320776]
[1673978771477,14.70292387,1578.6,1578.4,16.01424776]
[1673978771663,13.84398526,1578.6,1578.4,16.07834776]
[1673978773477,0.94838708,1578.5,1578.4,16.07834776]
[1673978774432,13.84418113,1578.6,1578.4,16.07834776]
[1673978774941,2.37269276,1578.5,1578.4,16.07834776]
[1673978777875,2.37269276,1578.5,1578.4,9.74282776]
[1673978779369,3.79488453,1578.5,1578.4,24.60531654]
[1673978779587,2.33562928,1578.5,1578.4,27.60531654]
[1673978783136,2.33562928,1578.5,1578.4,14.93427654]
[1673978783467,2.33562928,1578.5,1578.4,6.35730776]
[1673978783468,2.37077472,1578.5,1578.4,6.35730776]
[1673978783828,2.8092381,1578.5,1578.4,6.35730776]
[1673978788436,2.8092381,1578.5,1578.4,3.35730776]
[1673978788650,2.8092381,1578.5,1578.4,3.29320776]
[1673978789016,5.42328339,1578.5,1578.4,3.29320776]
[1673978789327,5.4814898,1578.5,1578.4,3.29320776]
[1673978790016,11.8166098,1578.5,1578.3,0.0641]
[1673978790182,11.8166098,1578.5,1578.3,6.11662407]
[1673978790183,2.33647472,1578.4,1578.3,6.11662407]
[1673978790384,2.28647472,1578.4,1578.3,6.41072407]
[1673978792333,2.7592381,1578.4,1578.3,6.41072407]
[1673978793172,2.7592381,1578.4,1578.3,0.0641]
[1673978793173,27.49959598,1578.4,1578.3,0.0641]
[1673978793324,26.13561062,1578.4,1578.1,0.39810866]
[1673978793536,2.37405411,1578.3,1578.1,3.51473273]
[1673978793799,0.94962164,1578.2,1578.1,3.51473273]
[1673978793977,0.94962164,1578.2,1578.1,0.39810866]
[1673978794296,7.28595164,1578.2,1578.1,0.39810866]
[1673978794529,7.34415805,1578.2,1578.1,0.39810866]
[1673978794853,6.39453641,1578.2,1578.1,0.39810866]
[1673978795016,8.8284209,1578.2,1578.1,0.39810866]
[1673978795708,16.11437254,1578.2,1578.1,0.39810866]
[1673978796010,16.58918337,1578.2,1578.1,0.39810866]
[1673978796807,10.25285337,1578.2,1578.1,0.39810866]
[1673978797854,1.48263888,1578.2,1578.1,0.39810866]
[1673978798065,7.34310352,1578.3,1578.1,0.39810866]
[1673978798271,8.76753599,1578.3,1578.1,0.39810866]
[1673978799858,7.34310352,1578.3,1578.1,0.39810866]
[1673978802414,1.00697352,1578.3,1578.2,3.11662407]
[1673978802604,0.94876711,1578.3,1578.2,11.30176734]
[1673978802835,2.90670599,1578.4,1578.2,11.36586734]
[1673978803166,2.84849958,1578.4,1578.2,11.36586734]
[1673978804849,1.42406711,1578.4,1578.3,3.34662407]
[1673978806494,0.94876711,1578.4,1578.3,3.34662407]
[1673978807029,0.94876711,1578.4,1578.3,9.68255407]
[1673978807239,0.94876711,1578.4,1578.3,3.41072407]
[1673978807460,0.94876711,1578.4,1578.3,3.34662407]
[1673978808056,0.94876711,1578.4,1578.2,0.0641]
[1673978808376,16.75618328,1578.4,1578.2,3.11662407]
[1673978808587,13.62098711,1578.3,1578.1,0.46220866]
[1673978808778,13.62098711,1578.3,1578.1,0.39810866]
[1673978808779,15.10362599,1578.3,1578.1,0.39810866]
[1673978809750,8.76739599,1578.3,1578.1,0.39810866]
[1673978810044,10.6818744,1578.3,1578.1,0.39810866]
[1673978810923,23.3540344,1578.3,1578.1,0.39810866]
[1673978811137,2.33170589,1578.2,1578.1,0.39810866]
[1673978812825,3.75568835,1578.2,1578.1,0.39810866]
[1673978813441,10.09201835,1578.2,1578.1,0.39810866]
[1673978813650,22.82288476,1578.2,1578.1,0.39810866]
[1673978813980,34.40318476,1578.2,1578.1,0.39810866]
[1673978814418,36.21051045,1578.2,1578.1,0.39810866]
[1673978814912,46.05121045,1578.2,1578.1,0.39810866]
[1673978815344,46.05121045,1578.2,1578.1,0.39578217]
[1673978815561,50.99251555,1578.2,1578.1,0.39578217]
[1673978816588,49.56808308,1578.2,1578.1,0.39578217]
[1673978816803,51.4674901,1578.2,1578.1,0.39578217]
[1673978817017,50.51959845,1578.2,1578.1,0.39578217]
[1673978817785,52.41554755,1578.2,1578.1,0.39578217]
[1673978818585,53.85754755,1578.2,1578.1,0.39578217]
[1673978818889,52.43311508,1578.2,1578.1,0.39578217]
[1673978819122,53.85469116,1578.2,1578.1,0.39578217]
[1673978819681,52.90640474,1578.2,1578.1,0.39578217]
[1673978821090,51.95874206,1578.2,1578.1,0.39578217]
[1673978821308,52.90650414,1578.2,1578.1,0.39578217]
[1673978821516,52.9065054,1578.2,1578.1,0.39578217]
[1673978822183,51.95874206,1578.2,1578.1,0.39578217]
[1673978822881,53.85469116,1578.2,1578.1,0.39578217]
[1673978823520,51.95874206,1578.2,1578.1,0.39578217]
[1673978824493,52.43311508,1578.2,1578.1,0.39578217]
[1673978825034,1.99301434,1578.0,1577.9,0.05015279]
[1673978825251,22.25148474,1578.0,1577.9,0.05015279]
[1673978825467,25.13362993,1578.0,1577.9,0.05015279]
[1673978827026,23.69262993,1578.0,1577.9,0.05015279]
[1673978827717,33.47072993,1578.0,1577.9,0.05015279]
[1673978827930,33.94612993,1578.0,1577.9,0.05015279]
[1673978828382,33.47072993,1578.0,1577.9,0.05015279]
[1673978828712,16.62375218,1578.0,1577.9,0.05015279]
[1673978828870,16.32445075,1578.0,1577.9,0.05015279]
[1673978830879,22.66158075,1578.0,1577.9,0.05015279]
[1673978831743,28.99871075,1578.0,1577.9,0.05015279]
[1673978832687,29.94648972,1578.0,1577.9,0.05015279]
[1673978832894,30.32758425,1578.0,1577.9,0.05015279]
[1673978833088,35.17875739,1578.0,1577.9,0.05015279]
[1673978833720,18.60110322,1578.0,1577.9,0.05015279]
[1673978833940,16.32445075,1578.0,1577.9,0.05015279]
[1673978834190,16.32445075,1578.0,1577.9,10.66830686]
[1673978834191,0.20922075,1578.0,1577.9,10.66830686]
[1673978834511,0.15101434,1578.0,1577.9,4.39487686]
[1673978834825,0.15101434,1578.0,1577.9,5.55336389]
[1673978835037,0.15101434,1578.0,1577.9,5.38746389]
[1673978837134,0.15101434,1578.0,1577.9,4.45346389]
[1673978837466,0.15101434,1578.0,1577.9,3.16677686]
[1673978838590,0.15101434,1578.0,1577.9,3.11677686]
[1673978840279,6.48814434,1578.0,1577.9,3.11677686]
[1673978840495,6.54635075,1578.0,1577.9,3.11677686]
[1673978843224,0.20922075,1578.0,1577.9,3.11677686]
[1673978843433,0.15101434,1578.0,1577.9,3.11677686]
[1673978843680,0.15101434,1578.0,1577.9,4.17378889]
[1673978844952,0.15101434,1578.0,1577.9,4.64110535]
[1673978845095,0.15101434,1578.0,1577.9,4.40378889]
[1673978846405,0.15101434,1578.0,1577.9,10.74131889]
[1673978846602,0.15101434,1578.0,1577.9,10.80541889]
[1673978846932,0.15101434,1578.0,1577.9,11.04298406]
[1673978849613,0.15101434,1578.0,1577.9,4.46788889]
[1673978849829,0.15101434,1578.0,1577.9,3.34677686]
[1673978850809,0.15101434,1578.0,1577.9,3.58442345]
[1673978851191,0.15101434,1578.0,1577.9,4.58442345]
[1673978851402,0.15101434,1578.0,1577.9,3.58442345]
[1673978852127,0.15101434,1578.0,1577.9,3.34677686]
[1673978852613,0.15101434,1578.0,1577.9,3.58438734]
[1673978852937,0.15101434,1578.0,1577.9,3.34677686]
[1673978854904,3.33701,1578.0,1577.9,3.34677686]
[1673978855112,4.44656384,1578.0,1577.9,3.11677686]
[1673978855734,3.33701,1578.0,1577.9,3.11677686]
[1673978855951,2.42901,1578.0,1577.9,3.11677686]
[1673978856368,8.76614,1578.0,1577.9,3.11677686]
[1673978856560,15.16147641,1578.0,1577.9,3.11677686]
[1673978859854,0.20922075,1578.0,1577.9,3.11677686]
[1673978860067,0.15101434,1578.0,1577.9,3.11677686]
[1673978864031,0.15101434,1578.0,1577.9,4.11677686]
[1673978864264,0.15101434,1578.0,1577.9,3.11677686]
[1673978865612,0.15101434,1578.0,1577.9,4.30504907]
[1673978866368,0.15101434,1578.0,1577.9,4.54261507]
[1673978867816,0.15101434,1578.0,1577.9,10.88014507]
[1673978868173,0.15101434,1578.0,1577.9,10.94424507]
[1673978868385,0.15101434,1578.0,1577.9,30.24773758]
[1673978868532,0.15101434,1578.0,1577.9,38.78911084]
[1673978868990,0.15101434,1578.0,1577.9,37.84997859]
[1673978870632,0.15101434,1578.0,1577.9,39.73491055]
[1673978871422,0.15101434,1578.0,1577.9,34.33714375]
[1673978871738,0.15101434,1578.0,1577.9,32.66514375]
[1673978871956,0.15101434,1578.0,1577.9,25.85764487]
[1673978872167,0.15101434,1578.0,1577.9,25.09580161]
[1673978872535,0.15101434,1578.0,1577.9,31.43333161]
[1673978872852,0.15101434,1578.0,1577.9,32.19517487]
[1673978873063,0.15101434,1578.0,1577.9,32.42517487]
[1673978873290,0.15101434,1578.0,1577.9,31.48443471]
[1673978873675,0.15101434,1578.0,1577.9,26.08764487]
[1673978874049,0.15101434,1578.0,1577.9,17.36737471]
[1673978874266,0.15101434,1578.0,1577.9,13.28847132]
[1673978875570,0.15101434,1578.0,1577.9,6.71337532]
[1673978876196,0.15101434,1578.0,1577.9,6.48337532]
[1673978878148,0.15101434,1578.0,1577.9,3.48337532]
[1673978878357,1.05901434,1578.0,1577.9,3.41927532]
[1673978878548,1.70779177,1578.0,1577.9,3.41927532]
[1673978880402,0.15101434,1578.0,1577.9,3.41927532]
[1673978884774,13.67962538,1578.1,1577.9,3.41927532]
[1673978884940,21.66664066,1578.0,1577.9,1.18827221]
[1673978885135,23.16684707,1578.0,1577.9,1.18827221]
[1673978885345,28.02635834,1578.0,1577.9,1.18827221]
[1673978886714,26.60468989,1578.0,1577.9,1.18827221]
[1673978887456,28.02635834,1578.0,1577.9,1.18827221]
[1673978887664,26.60468989,1578.0,1577.9,1.18827221]
[1673978888572,28.02635834,1578.0,1577.9,1.18827221]
[1673978888871,26.60468989,1578.0,1577.9,1.18827221]
[1673978889083,28.02635834,1578.0,1577.9,1.18827221]
[1673978889398,28.63578298,1578.0,1577.9,1.18827221]
[1673978889606,30.55206363,1578.0,1577.9,1.18827221]
[1673978890302,30.41723082,1578.0,1577.9,1.18827221]
[1673978890539,31.97444114,1578.0,1577.9,1.18827221]
[1673978890862,30.55206363,1578.0,1577.9,1.18460022]
[1673978891231,30.41714325,1578.0,1577.9,1.18460022]
[1673978891450,30.55206363,1578.0,1577.9,1.18460022]
[1673978892065,30.41678802,1578.0,1577.9,1.18460022]
[1673978892336,31.97399163,1578.0,1577.9,1.18460022]
[1673978893555,30.55206363,1578.0,1577.8,0.0513134]
[1673978893915,1.0,1577.8,1577.7,0.03668994]
[1673978894129,24.10986192,1577.8,1577.7,0.03668994]
[1673978894323,24.64356833,1577.8,1577.7,0.03668994]
[1673978894496,26.20077194,1577.8,1577.7,0.03668994]
[1673978894709,40.47514318,1577.8,1577.7,0.03668994]
[1673978894911,39.52778089,1577.8,1577.7,0.03668994]
[1673978895755,40.47514161,1577.8,1577.7,0.03668994]
[1673978896251,39.05314138,1577.8,1577.7,0.03668994]
[1673978897182,40.47514161,1577.8,1577.7,0.03668994]
[1673978898014,39.05314138,1577.8,1577.7,0.03668994]
[1673978898236,40.47514161,1577.8,1577.7,0.03668994]
[1673978898611,39.52778089,1577.8,1577.7,0.03668994]
[1673978899017,40.47429962,1577.8,1577.7,0.03668994]
[1673978899661,39.52778089,1577.8,1577.7,0.03668994]
[1673978900228,42.64440496,1577.8,1577.7,0.03668994]
[1673978900384,48.98233496,1577.8,1577.7,0.03668994]
[1673978901135,50.42433496,1577.8,1577.7,0.03668994]
[1673978901747,53.42433496,1577.8,1577.7,0.03668994]
[1673978902119,20.01502,1577.7,1577.6,0.0513134]
[1673978902428,51.87851841,1577.7,1577.6,0.0513134]
[1673978902585,50.45651818,1577.7,1577.6,0.0513134]
[1673978903071,47.33989411,1577.7,1577.6,0.0513134]
[1673978903257,47.28774418,1577.7,1577.6,0.0513134]
[1673978903899,50.40436825,1577.7,1577.6,0.0513134]
[1673978904506,55.34036825,1577.7,1577.6,0.0513134]
[1673978904741,51.84036825,1577.7,1577.6,0.0513134]
[1673978905059,53.26236848,1577.7,1577.6,0.0513134]
[1673978905633,50.14574441,1577.7,1577.6,0.0513134]
[1673978906117,48.72374418,1577.7,1577.6,0.0513134]
[1673978906358,50.14574441,1577.7,1577.6,0.0513134]
[1673978906843,56.7862599,1577.7,1577.6,0.0003134]
[1673978907222,53.2862599,1577.7,1577.6,0.0003134]
[1673978907641,53.2862599,1577.7,1577.6,1.28638337]
[1673978907966,44.9515599,1577.7,1577.6,3.37e-06]
[1673978908186,44.9515599,1577.7,1577.3,0.05610955]
[1673978908187,1.0,1577.5,1577.3,0.05610955]
[1673978908408,37.5549663,1577.5,1577.3,0.05610955]
[1673978908596,45.93296639,1577.5,1577.3,0.05610955]
[1673978908949,20.01862,1577.4,1577.3,0.04021996]
[1673978909141,47.44175048,1577.4,1577.3,0.04021996]
[1673978909355,58.03681154,1577.4,1577.3,9.96e-06]
[1673978909667,55.01241154,1577.4,1577.3,9.96e-06]
[1673978909873,53.51058714,1577.4,1577.3,9.96e-06]
[1673978910128,51.34474964,1577.4,1577.3,9.96e-06]
[1673978910578,50.99812557,1577.4,1577.3,9.96e-06]
[1673978911419,49.55612557,1577.4,1577.2,0.01061969]
[1673978911620,4.10040895,1577.3,1577.2,0.01061969]
[1673978911836,23.12022895,1577.3,1577.2,0.01061969]
[1673978912046,23.17843536,1577.3,1577.2,0.01061969]
[1673978912253,26.29505943,1577.3,1577.2,0.01061969]
[1673978912570,34.07699943,1577.3,1577.2,0.01061969]
[1673978912787,30.96037536,1577.3,1577.2,0.01061969]
[1673978913029,31.43597536,1577.3,1577.2,0.01061969]
[1673978913405,30.96037536,1577.3,1577.2,0.01061969]
[1673978913893,29.51837536,1577.3,1577.2,0.01061969]
[1673978914085,25.41796641,1577.3,1577.2,0.01061969]
[1673978924302,0.05820641,1577.3,1577.2,0.94461969]
[1673978924471,24.74224641,1577.4,1577.2,0.94461969]
[1673978925845,18.40252641,1577.4,1577.2,1.18959164]
[1673978926483,0.05820641,1577.4,1577.3,4.55862407]
[1673978926675,0.002,1577.5,1577.3,4.55862407]
[1673978926882,0.002,1577.5,1577.4,1.442]
[1673978929563,0.002,1577.5,1577.4,17.23770407]
[1673978929778,0.002,1577.5,1577.4,19.76594748]
[1673978929928,0.002,1577.5,1577.4,13.42640748]
[1673978932085,1.844,1577.5,1577.4,7.84564]
[1673978932276,20.86142,1577.5,1577.4,0.0641]